fUST/lending_fUST_20250205
["ID","MTS","AMOUNT","RATE_DAILY","PERIOD"]
[351696665,1738749037950,-500.0,0.00015973,2]
[351696667,1738749037959,-635.04311407,0.00015973,2]
[351696668,1738749037969,-500.0,0.00015973,2]
[351696669,1738749037978,-500.0,0.00015973,2]
[351696670,1738749037987,-500.0,0.00015973,2]
[351696671,1738749037996,-501.68672182,0.00015973,2]
[351696672,1738749038006,-500.0,0.00015973,2]
[351696673,1738749038015,-500.0,0.00015986,2]
[351696674,1738749038031,-500.0,0.00015986,2]
[351696675,1738749038040,-1346.57,0.00015986,2]
[351696676,1738749038049,-500.0,0.00015986,2]
[351696677,1738749038058,-500.0,0.00015986,2]
[351696678,1738749038067,-500.0,0.00015986,2]
[351696679,1738749038080,-500.0,0.00015986,2]
[351696680,1738749038089,-500.0,0.00015986,2]
[351696681,1738749038099,-500.0,0.00015986,2]
[351696682,1738749038108,-512.5002041,0.00015986,2]
[351696684,1738749038117,-500.0,0.00015986,2]
[351696686,1738749038126,-437.7567237,0.00015986,2]
[351696687,1738749038138,-62.2432763,0.00015986,2]
[351696689,1738749038147,-500.0,0.00015986,2]
[351696690,1738749038156,-500.0,0.00015986,2]
[351696692,1738749038165,-88.35915683,0.00015986,2]
[351696693,1738749038176,-411.64084317,0.00015986,2]
[351696695,1738749038185,-500.0,0.00015986,2]
[351696697,1738749038195,-503.8,0.00015986,2]
[351696699,1738749038204,-183.69051134,0.00015986,2]
[351696702,1738749038214,-293.33861973,0.00015986,2]
[351696707,1738749038254,-22.97086893,0.00015986,2]
[351696709,1738749038264,-320.1762804,0.00015986,2]
[351696711,1738749038275,-179.8237196,0.00015986,2]
[351696713,1738749038286,-500.0,0.00015986,2]
[351696715,1738749038295,-320.1762804,0.00015986,2]
[351696726,1738749039963,-179.8237196,0.00015986,2]
[351696727,1738749039973,-332.55059729,0.00015986,2]
[351696752,1738749043087,-167.44940271,0.00015986,2]
[351696753,1738749043096,-500.0,0.00015986,2]
[351696754,1738749043103,-500.0,0.00015986,2]
[351696755,1738749043110,-500.0,0.00015986,2]
[351696756,1738749043117,-2223.08,0.00015986,2]
[351696757,1738749043124,-1179.32,0.00015986,2]
[351696758,1738749043131,-500.0,0.00015986,2]
[351696759,1738749043138,-293.95230079,0.00015986,2]
[351696760,1738749043145,-505.7209328,0.00015986,2]
[351696761,1738749043153,-500.0,0.00015986,2]
[351696762,1738749043160,-500.0,0.00015986,2]
[351696763,1738749043167,-500.0,0.00015986,2]
[351696764,1738749043174,-500.0,0.00015986,2]
[351696765,1738749043182,-503.15110495,0.00015986,2]
[351696766,1738749043190,-16.68300386,0.00015986,2]
[351696940,1738749086578,197.572542,0.00013973,2]
[351696941,1738749160896,152.81,0.000179,31]
[351696942,1738749160943,152.81,0.000179,31]
[351696943,1738749161004,152.81,0.000179,31]
[351696944,1738749161143,152.81,0.000179,31]
[351696945,1738749161184,152.81,0.000179,31]
[351696946,1738749161229,152.81,0.000179,31]
[351696947,1738749161265,152.81,0.000179,31]
[351696970,1738749639901,570.55,0.000204,120]
[351696971,1738749655701,8082.09040631,0.0001,10]
[351696972,1738749766104,152.82,0.000179,31]
[351696973,1738749766149,152.82,0.000179,31]
[351696974,1738749766217,152.82,0.000179,31]
[351696975,1738749766263,152.82,0.000179,31]
[351696976,1738749766329,152.82,0.000179,31]
[351696977,1738749766386,152.82,0.000179,31]
[351696978,1738749766447,152.82,0.000179,31]
[351696979,1738749816045,173.83,0.00010959,2]
[351696980,1738749847008,869.19,0.00010959,2]
[351696986,1738750113780,184.8339979,0.00013699,2]
[351697037,1738750232224,-329.60105512,0.00015669,2]
[351697039,1738750232234,-2.17190093,0.00015881,2]
[351697158,1738750243256,-167.0291957,0.00015881,2]
[351697159,1738750243265,-396.0,0.0001589,2]
[351697160,1738750243274,-1825.83203305,0.000159,2]
[351697161,1738750243283,-1550.957647,0.000159,7]
[351697162,1738750243292,-300.0,0.00015972,2]
[351697163,1738750243302,-500.0,0.00015973,2]
[351697164,1738750243311,-500.0,0.00015973,2]
[351697165,1738750243321,-500.0,0.00015973,2]
[351697166,1738750243332,-500.0,0.00015973,2]
[351697167,1738750243341,-500.0,0.00015973,2]
[351697168,1738750243351,-500.0,0.00015973,2]
[351697169,1738750243360,-500.0,0.00015973,2]
[351697170,1738750243369,-500.0,0.00015973,2]
[351697171,1738750243378,-500.0,0.00015973,2]
[351697172,1738750243387,-500.0,0.00015973,2]
[351697173,1738750243396,-500.0,0.00015973,2]
[351697174,1738750243405,-244.43994063,0.00015973,2]
[351697175,1738750243414,-500.0,0.00015981,2]
[351697176,1738750243424,-2130.45,0.00015981,2]
[351697177,1738750243433,-246.48960903,0.00015981,2]
[351697178,1738750243443,-9446.45,0.00015981,2]
[351697179,1738750243452,-2845.98352006,0.00015981,2]
[351697207,1738750271900,207.693915,0.00013973,2]
[351697208,1738750370343,152.84,0.000179,31]
[351697209,1738750370406,152.84,0.000179,31]
[351697210,1738750370465,152.84,0.000179,31]
[351697211,1738750370518,152.84,0.000179,31]
[351697212,1738750370580,152.84,0.000179,31]
[351697213,1738750370646,152.84,0.000179,31]
[351697214,1738750370706,152.84,0.000179,31]
[351697215,1738750470883,1250.0,0.00015012,2]
[351697216,1738750497659,3000.0,0.00018,30]
[351697217,1738750498627,1000.0,0.00016,30]
[351697219,1738750629991,2179.05212834,0.00015012,2]
[351697220,1738750639302,987.93535,0.00015012,2]
[351697223,1738750973762,152.88,0.000179,31]
[351697224,1738750973816,152.88,0.000179,31]
[351697225,1738750973878,152.88,0.000179,31]
[351697226,1738750973932,152.88,0.000179,31]
[351697227,1738750973998,152.88,0.000179,31]
[351697228,1738750974062,152.88,0.000179,31]
[351697233,1738751183756,217.30922,0.00013973,2]
[351697287,1738751432409,-277.06826792,0.00015207,2]
[351697288,1738751432419,-438.13755228,0.00015516,2]
[351697289,1738751432428,-482.14271365,0.00015518,2]
[351697290,1738751432437,-757.45795957,0.0001564,2]
[351697307,1738751438246,-1990.60442754,0.0001564,2]
[351697308,1738751438255,-1643.24882979,0.00015904,2]
[351697309,1738751438264,-300.0,0.00015972,2]
[351697310,1738751438273,-500.0,0.00015973,2]
[351697311,1738751438282,-500.0,0.00015973,2]
[351697312,1738751438291,-287.65771138,0.00015973,2]
[351697338,1738751446345,-212.34228862,0.00015973,2]
[351697339,1738751446355,-369.72830406,0.00015973,2]
[351697340,1738751446365,-500.0,0.00015973,2]
[351697341,1738751446375,-500.0,0.00015973,2]
[351697342,1738751446384,-500.0,0.00015973,2]
[351697343,1738751446395,-500.0,0.00015973,2]
[351697344,1738751446404,-448.38008372,0.00015973,2]
[351697345,1738751446416,-51.61991628,0.00015973,2]
[351697346,1738751446426,-500.0,0.00015976,2]
[351697347,1738751446435,-436.31543372,0.00015976,2]
[351697352,1738751576241,152.9,0.000179,31]
[351697353,1738751576321,152.9,0.000179,31]
[351697354,1738751576408,152.9,0.000179,31]
[351697355,1738751576454,152.9,0.000179,31]
[351697356,1738751576500,152.9,0.000179,31]
[351697357,1738751576561,152.9,0.000179,31]
[351697358,1738751576619,152.9,0.000179,31]
[351697359,1738751576678,152.9,0.000179,31]
[351697360,1738751623299,5000.0,0.000179,31]
[351697366,1738751661500,95338.50566974,1.59e-05,2]
[351697368,1738751755394,6832.0,0.000179,31]
[351697373,1738752005192,498.0,0.00018,30]
[351697374,1738752028637,226.443759,0.00013973,2]
[351697375,1738752178164,152.98,0.000179,31]
[351697376,1738752178206,152.98,0.000179,31]
[351697377,1738752178244,152.98,0.000179,31]
[351697378,1738752178296,152.98,0.000179,31]
[351697379,1738752178338,152.98,0.000179,31]
[351697380,1738752178381,152.98,0.000179,31]
[351697381,1738752178427,152.98,0.000179,31]
[351697389,1738752575812,151.0,0.00015012,2]
[351697454,1738752632611,-1204.15000005,0.00015283,2]
[351697456,1738752632623,-2092.87385066,0.00015283,2]
[351697522,1738752638416,-1702.97614929,0.00015283,2]
[351697523,1738752638426,-160.0,0.00015761,3]
[351697524,1738752638435,-169.20109663,0.00015871,2]
[351697525,1738752638445,-300.0,0.00015886,2]
[351697526,1738752638455,-8489.07393142,0.00015887,2]
[351697564,1738752643639,-259.22476014,0.00015887,2]
[351697565,1738752643651,-151.0,0.00015899,2]
[351697566,1738752643663,-500.0,0.0001597,2]
[351697567,1738752643673,-509.48059094,0.0001597,2]
[351697568,1738752643682,-828.02,0.0001597,2]
[351697569,1738752643691,-500.0,0.00015971,2]
[351697570,1738752643701,-500.0,0.00015971,2]
[351697571,1738752643710,-500.0,0.00015971,2]
[351697572,1738752643720,-500.0,0.00015971,2]
[351697573,1738752643730,-613.94794578,0.00015971,2]
[351697574,1738752643739,-178.07568351,0.00015971,2]
[351697575,1738752643749,-500.0,0.00015971,2]
[351697576,1738752643758,-500.0,0.00015971,2]
[351697577,1738752643767,-500.0,0.00015971,2]
[351697579,1738752643777,-500.0,0.00015971,2]
[351697580,1738752643786,-500.0,0.00015971,2]
[351697581,1738752643795,-174.04909473,0.00015971,2]
[351697582,1738752643805,-2041.68,0.00015971,2]
[351697583,1738752643815,-9034.67,0.00015971,2]
[351697584,1738752643825,-500.0,0.00015971,2]
[351697585,1738752643835,-5713.7,0.00015971,2]
[351697586,1738752643844,-1425.17156237,0.00015971,2]
[351697591,1738752646571,-694.17021615,0.00015971,2]
[351697592,1738752646585,-1539.87822148,0.00015971,2]
[351697593,1738752646594,-517.99,0.00015971,2]
[351697594,1738752646605,-533.33450618,0.00015971,2]
[351697595,1738752646614,-1855.69,0.00015971,2]
[351697596,1738752646624,-26.10729234,0.00015971,2]
[351697597,1738752646639,-3636.59578717,0.00015971,2]
[351697598,1738752713251,184.938302,0.00013699,2]
[351697602,1738752835843,1693.88698431,0.00015012,2]
[351697603,1738752893162,10000.0,0.0001501,2]
[351697604,1738752900104,235.121571,0.00013973,2]
[351697614,1738753749377,243.365492,0.00013973,2]
[351697617,1738753797960,184.799989,0.00013699,2]
[351697618,1738753805503,1000.0,0.00020424,120]
[351697662,1738753832805,-208.01628147,0.00015183,2]
[351697664,1738753832815,-176.65373853,0.00015479,2]
[351697670,1738753832862,-289.28103419,0.00015479,2]
[351697672,1738753832871,-11808.64269279,0.00015699,2]
[351697674,1738753832881,-711.73417719,0.0001577,2]
[351697676,1738753832891,-711.73417716,0.0001577,2]
[351697678,1738753832900,-711.73417716,0.00015771,2]
[351697680,1738753832910,-711.73417716,0.00015771,2]
[351697682,1738753832919,-711.73417716,0.00015771,2]
[351697684,1738753832928,-254.99153597,0.00015868,2]
[351697686,1738753832939,-793.52,0.00015868,2]
[351697689,1738753832948,-500.0,0.00015869,2]
[351697692,1738753832957,-673.03,0.00015869,2]
[351697694,1738753832967,-461.02807614,0.00015869,2]
[351697697,1738753832977,-500.0,0.00015869,2]
[351697700,1738753832986,-8750.4,0.00015869,2]
[351697703,1738753832995,-5538.13,0.00015869,2]
[351697707,1738753833004,-3569.26,0.00015869,2]
[351697709,1738753833013,-1129.43,0.00015869,2]
[351697712,1738753833022,-2074.55,0.00015869,2]
[351697716,1738753833032,-2074.55,0.00015869,2]
[351697718,1738753833041,-2074.55,0.00015869,2]
[351697722,1738753833051,-500.0,0.00015869,2]
[351697725,1738753833060,-2074.55,0.00015869,2]
[351697726,1738753833070,-2074.55,0.00015869,2]
[351697730,1738753833080,-2074.55,0.00015869,2]
[351697733,1738753833089,-2074.55,0.00015869,2]
[351697736,1738753833099,-2074.55,0.00015869,2]
[351697738,1738753833109,-399.013181,0.00015869,2]
[351697741,1738753833119,-399.013181,0.00015869,2]
[351697744,1738753833130,-399.013181,0.00015869,2]
[351697746,1738753833139,-399.013181,0.00015869,2]
[351697747,1738753833148,-152.0,0.00015869,2]
[351697749,1738753833159,-399.013181,0.00015869,2]
[351697751,1738753833169,-399.013181,0.00015869,2]
[351697753,1738753833179,-399.013181,0.00015869,2]
[351697755,1738753833189,-399.013181,0.00015869,2]
[351697757,1738753833200,-399.013181,0.00015869,2]
[351697760,1738753833211,-399.013181,0.00015869,2]
[351697762,1738753833220,-399.013181,0.00015869,2]
[351697763,1738753833230,-399.013181,0.00015869,2]
[351697765,1738753833240,-399.013181,0.00015869,2]
[351697767,1738753833249,-537.5,0.00015869,2]
[351697769,1738753833258,-399.013181,0.00015869,2]
[351697771,1738753833268,-399.013181,0.00015869,2]
[351697773,1738753833277,-399.013181,0.00015869,2]
[351697775,1738753833286,-399.013181,0.00015869,2]
[351697777,1738753833296,-399.013181,0.00015869,2]
[351697780,1738753833307,-1194.91,0.00015869,2]
[351697781,1738753833316,-500.0,0.00015869,2]
[351697783,1738753833325,-500.0,0.00015869,2]
[351697785,1738753833335,-1275.9,0.00015869,2]
[351697787,1738753833345,-22802.27,0.00015869,2]
[351697790,1738753833355,-500.0,0.00015869,2]
[351697792,1738753833365,-523.34329173,0.00015869,2]
[351697794,1738753833375,-523.34329173,0.00015869,2]
[351697796,1738753833384,-198.8,0.00015869,2]
[351697798,1738753833393,-500.0,0.00015869,2]
[351697800,1738753833403,-523.34329173,0.00015869,2]
[351697802,1738753833414,-523.34329173,0.00015869,2]
[351697803,1738753833423,-500.0,0.00015869,2]
[351697805,1738753833433,-523.34329173,0.00015869,2]
[351697808,1738753833443,-523.34329173,0.00015869,2]
[351697810,1738753833453,-507.07955029,0.00015869,2]
[351697812,1738753833462,-523.34329173,0.00015869,2]
[351697814,1738753833472,-523.34329173,0.00015869,2]
[351697816,1738753833482,-523.34329173,0.00015869,2]
[351697817,1738753833492,-523.34329173,0.00015869,2]
[351697819,1738753833501,-523.34329173,0.00015869,2]
[351697822,1738753833511,-523.34329173,0.00015869,2]
[351697824,1738753833521,-523.34329173,0.00015869,2]
[351697826,1738753833531,-523.34329173,0.00015869,2]
[351697828,1738753833541,-523.34329173,0.00015869,2]
[351697830,1738753833551,-523.34329173,0.00015869,2]
[351697832,1738753833561,-523.34329173,0.00015869,2]
[351697834,1738753833571,-523.34329173,0.00015869,2]
[351697836,1738753833580,-523.34329173,0.00015869,2]
[351697838,1738753833590,-523.34329173,0.00015869,2]
[351697840,1738753833599,-523.34329173,0.00015869,2]
[351697841,1738753833609,-523.34329173,0.00015869,2]
[351697844,1738753833619,-523.34329173,0.00015869,2]
[351697846,1738753833629,-523.34329173,0.00015869,2]
[351697848,1738753833638,-523.34329173,0.00015869,2]
[351697850,1738753833647,-523.34329173,0.00015869,2]
[351697852,1738753833656,-523.34329173,0.00015869,2]
[351697854,1738753833667,-523.34329173,0.00015869,2]
[351697856,1738753833675,-523.34329173,0.00015869,2]
[351697858,1738753833684,-523.34329173,0.00015869,2]
[351697860,1738753833693,-523.34329173,0.00015869,2]
[351697861,1738753833703,-523.34329173,0.00015869,2]
[351697864,1738753833712,-523.34329173,0.00015869,2]
[351697866,1738753833723,-523.34329173,0.00015869,2]
[351697868,1738753833733,-523.34329173,0.00015869,2]
[351697870,1738753833742,-523.34329173,0.00015869,2]
[351697872,1738753833751,-523.34329173,0.00015869,2]
[351697874,1738753833761,-523.34329173,0.00015869,2]
[351697876,1738753833771,-523.34329173,0.00015869,2]
[351697878,1738753833781,-523.34329173,0.00015869,2]
[351697879,1738753833790,-523.34329173,0.00015869,2]
[351697881,1738753833800,-523.34329173,0.00015869,2]
[351697884,1738753833810,-523.34329173,0.00015869,2]
[351697885,1738753833820,-523.34329173,0.00015869,2]
[351697887,1738753833829,-523.34329173,0.00015869,2]
[351697889,1738753833838,-523.34329173,0.00015869,2]
[351697892,1738753833848,-523.34329173,0.00015869,2]
[351697894,1738753833861,-523.34329173,0.00015869,2]
[351697896,1738753833871,-523.34329173,0.00015869,2]
[351697898,1738753833880,-523.34329173,0.00015869,2]
[351697900,1738753833889,-523.34329173,0.00015869,2]
[351697902,1738753833899,-523.34329173,0.00015869,2]
[351697904,1738753833909,-523.34329173,0.00015869,2]
[351697906,1738753833919,-523.34329173,0.00015869,2]
[351697908,1738753833930,-523.34329173,0.00015869,2]
[351697910,1738753833940,-523.34329173,0.00015869,2]
[351697912,1738753833951,-523.34329173,0.00015869,2]
[351697913,1738753833961,-516.59047505,0.00015869,2]
[351697916,1738753833971,-516.59047505,0.00015869,2]
[351697918,1738753833982,-516.59047505,0.00015869,2]
[351697920,1738753833992,-516.59047505,0.00015869,2]
[351697922,1738753834002,-516.59047505,0.00015869,2]
[351697923,1738753834012,-516.59047505,0.00015869,2]
[351697925,1738753834023,-516.59047505,0.00015869,2]
[351697928,1738753834033,-516.59047505,0.00015869,2]
[351697929,1738753834043,-516.59047505,0.00015869,2]
[351697931,1738753834052,-516.59047505,0.00015869,2]
[351697933,1738753834061,-516.59047505,0.00015869,2]
[351697935,1738753834071,-516.59047505,0.00015869,2]
[351697937,1738753834080,-516.59047505,0.00015869,2]
[351697939,1738753834089,-516.59047505,0.00015869,2]
[351697941,1738753834098,-516.59047505,0.00015869,2]
[351697943,1738753834108,-516.59047505,0.00015869,2]
[351697946,1738753834117,-516.59047505,0.00015869,2]
[351697948,1738753834127,-516.59047505,0.00015869,2]
[351697950,1738753834137,-516.59047505,0.00015869,2]
[351697952,1738753834146,-516.59047505,0.00015869,2]
[351697954,1738753834155,-516.59047505,0.00015869,2]
[351697956,1738753834166,-516.59047505,0.00015869,2]
[351697958,1738753834176,-516.59047505,0.00015869,2]
[351697960,1738753834186,-516.59047505,0.00015869,2]
[351697961,1738753834195,-516.59047505,0.00015869,2]
[351697963,1738753834206,-516.59047505,0.00015869,2]
[351697965,1738753834215,-516.59047505,0.00015869,2]
[351697967,1738753834227,-516.59047505,0.00015869,2]
[351697969,1738753834236,-535.72345565,0.00015869,2]
[351697971,1738753834246,-535.72345565,0.00015869,2]
[351697974,1738753834256,-535.72345565,0.00015869,2]
[351697976,1738753834266,-535.72345563,0.00015869,2]
[351697978,1738753834276,-696.141278,0.0001587,2]
[351697979,1738753834286,-696.141278,0.0001587,2]
[351697982,1738753834297,-696.141278,0.0001587,2]
[351697984,1738753834307,-696.141278,0.0001587,2]
[351697985,1738753834318,-696.141278,0.0001587,2]
[351697988,1738753834329,-696.141278,0.0001587,2]
[351697990,1738753834339,-696.141278,0.0001587,2]
[351697992,1738753834349,-696.141278,0.0001587,2]
[351697994,1738753834360,-696.141278,0.0001587,2]
[351697996,1738753834371,-696.141278,0.0001587,2]
[351697998,1738753834381,-696.141278,0.0001587,2]
[351698000,1738753834391,-696.141278,0.0001587,2]
[351698002,1738753834401,-696.141278,0.0001587,2]
[351698004,1738753834411,-696.141278,0.0001587,2]
[351698006,1738753834423,-213.511636,0.0001587,2]
[351698008,1738753834441,-696.141278,0.0001587,2]
[351698009,1738753834451,-213.511636,0.0001587,2]
[351698010,1738753834462,-696.141278,0.0001587,2]
[351698012,1738753834473,-213.511636,0.0001587,2]
[351698014,1738753834483,-696.141278,0.0001587,2]
[351698017,1738753834493,-213.511636,0.0001587,2]
[351698018,1738753834503,-696.141278,0.0001587,2]
[351698020,1738753834513,-213.511636,0.0001587,2]
[351698022,1738753834523,-696.141278,0.0001587,2]
[351698024,1738753834532,-213.511636,0.0001587,2]
[351698025,1738753834541,-213.511636,0.0001587,2]
[351698027,1738753834551,-696.141275,0.0001587,2]
[351698029,1738753834560,-213.511636,0.0001587,2]
[351698031,1738753834570,-213.511636,0.0001587,2]
[351698034,1738753834580,-213.511636,0.0001587,2]
[351698036,1738753834591,-213.511636,0.0001587,2]
[351698038,1738753834601,-213.511636,0.0001587,2]
[351698040,1738753834611,-213.511636,0.0001587,2]
[351698042,1738753834621,-213.511636,0.0001587,2]
[351698044,1738753834631,-213.511636,0.0001587,2]
[351698046,1738753834641,-213.511636,0.0001587,2]
[351698048,1738753834651,-213.511636,0.0001587,2]
[351698050,1738753834660,-213.511636,0.0001587,2]
[351698052,1738753834671,-213.511636,0.0001587,2]
[351698054,1738753834680,-213.511638,0.0001587,2]
[351698055,1738753834690,-14402.17,0.0001587,2]
[351698056,1738753834699,-665.42,0.0001587,2]
[351698057,1738753834708,-500.69295336,0.0001587,2]
[351698058,1738753834717,-439.88642172,0.0001587,2]
[351698059,1738753834726,-500.0,0.0001587,2]
[351698060,1738753834735,-793.66,0.0001587,2]
[351698061,1738753834746,-528.86,0.0001587,2]
[351698062,1738753834755,-11080.27,0.0001587,2]
[351698063,1738753834765,-500.0,0.0001587,2]
[351698064,1738753834774,-9175.0,0.0001587,2]
[351698065,1738753834784,-500.0,0.0001587,2]
[351698066,1738753834794,-4549.13,0.0001587,2]
[351698067,1738753834803,-620.37,0.0001587,2]
[351698068,1738753834813,-500.0,0.0001587,2]
[351698069,1738753834823,-3727.6,0.0001587,2]
[351698070,1738753834832,-1682.09,0.0001587,2]
[351698071,1738753834841,-785.11,0.0001587,2]
[351698072,1738753834852,-500.0,0.0001587,2]
[351698073,1738753834874,-1504.8,0.0001587,2]
[351698074,1738753834884,-500.0,0.0001587,2]
[351698075,1738753834895,-163.605064,0.0001587,2]
[351698076,1738753834908,-163.605064,0.0001587,2]
[351698077,1738753834918,-163.605064,0.0001587,2]
[351698078,1738753834928,-163.605064,0.0001587,2]
[351698079,1738753834939,-163.605064,0.0001587,2]
[351698080,1738753834949,-163.605064,0.0001587,2]
[351698081,1738753834959,-163.605064,0.0001587,2]
[351698082,1738753834969,-163.605064,0.0001587,2]
[351698083,1738753834978,-163.605064,0.0001587,2]
[351698084,1738753834990,-509.21,0.0001587,2]
[351698085,1738753834999,-163.605064,0.0001587,2]
[351698086,1738753835010,-163.605064,0.0001587,2]
[351698087,1738753835020,-163.605064,0.0001587,2]
[351698088,1738753835030,-163.605064,0.0001587,2]
[351698089,1738753835040,-163.605064,0.0001587,2]
[351698090,1738753835050,-163.605064,0.0001587,2]
[351698091,1738753835060,-163.605064,0.0001587,2]
[351698092,1738753835070,-163.605064,0.0001587,2]
[351698093,1738753835080,-163.605064,0.0001587,2]
[351698094,1738753835091,-163.605064,0.0001587,2]
[351698095,1738753835100,-163.605072,0.0001587,2]
[351698096,1738753835110,-1211.73,0.0001587,2]
[351698097,1738753835121,-6485.36,0.0001587,2]
[351698098,1738753835131,-6485.36,0.0001587,2]
[351698099,1738753835141,-6485.36,0.0001587,2]
[351698100,1738753835150,-6485.36,0.0001587,2]
[351698101,1738753835160,-6485.36,0.0001587,2]
[351698102,1738753835172,-4241.56,0.0001587,2]
[351698103,1738753835181,-3664.42,0.0001587,2]
[351698104,1738753835191,-9379.86,0.0001587,2]
[351698105,1738753835200,-1965.39036,0.0001587,2]
[351698106,1738753835210,-1965.39036,0.0001587,2]
[351698107,1738753835219,-1965.39036,0.0001587,2]
[351698108,1738753835230,-1965.39036,0.0001587,2]
[351698109,1738753835239,-1965.39036,0.0001587,2]
[351698110,1738753835249,-1965.39036,0.0001587,2]
[351698111,1738753835260,-1965.39036,0.0001587,2]
[351698112,1738753835271,-1965.39036,0.0001587,2]
[351698113,1738753835281,-1965.39036,0.0001587,2]
[351698114,1738753835291,-1965.39036,0.0001587,2]
[351698115,1738753835490,-500.0,0.0001587,2]
[351698116,1738753835501,-1965.39036,0.0001587,2]
[351698117,1738753835511,-1965.39036,0.0001587,2]
[351698118,1738753835522,-1965.39036,0.0001587,2]
[351698119,1738753835531,-1965.39036,0.0001587,2]
[351698120,1738753835540,-1965.39036,0.0001587,2]
[351698121,1738753835549,-1965.39036,0.0001587,2]
[351698122,1738753835559,-1965.39036,0.0001587,2]
[351698123,1738753835568,-16512.24,0.0001587,2]
[351698124,1738753835578,-1965.39036,0.0001587,2]
[351698125,1738753835587,-1965.39036,0.0001587,2]
[351698126,1738753835597,-702.78,0.0001587,2]
[351698127,1738753835606,-238.37239684,0.0001587,2]
[351698128,1738753835615,-500.0,0.0001587,2]
[351698129,1738753835625,-1965.39037,0.0001587,2]
[351698130,1738753835634,-505.27457596,0.0001587,2]
[351698131,1738753835647,-500.0,0.0001587,2]
[351698132,1738753835656,-580.31,0.0001587,2]
[351698133,1738753835666,-763.66,0.0001587,2]
[351698134,1738753835676,-500.0,0.0001587,2]
[351698135,1738753835686,-504.7694231,0.0001587,2]
[351698136,1738753835695,-1912.53,0.0001587,2]
[351698137,1738753835705,-1912.53,0.0001587,2]
[351698138,1738753835716,-1912.53,0.0001587,2]
[351698139,1738753835725,-1912.53,0.0001587,2]
[351698140,1738753835735,-1912.53,0.0001587,2]
[351698141,1738753835744,-961.57,0.0001587,2]
[351698142,1738753835754,-4040.49,0.0001587,2]
[351698143,1738753835763,-500.0,0.0001587,2]
[351698144,1738753835773,-500.0,0.0001587,2]
[351698145,1738753835783,-1388.04,0.0001587,2]
[351698146,1738753835793,-500.0,0.0001587,2]
[351698147,1738753835803,-1659.98,0.0001587,2]
[351698148,1738753835812,-5515.3,0.0001587,2]
[351698149,1738753835821,-4843.35,0.0001587,2]
[351698150,1738753835831,-2074.55,0.0001587,2]
[351698151,1738753835842,-2074.55,0.0001587,2]
[351698152,1738753835857,-2074.55,0.0001587,2]
[351698153,1738753835868,-2074.55,0.0001587,2]
[351698154,1738753835878,-2074.55,0.0001587,2]
[351698155,1738753835887,-2074.55,0.0001587,2]
[351698156,1738753835898,-2074.55,0.0001587,2]
[351698157,1738753835907,-2074.55,0.0001587,2]
[351698158,1738753835916,-2074.55,0.0001587,2]
[351698159,1738753835928,-2074.55,0.0001587,2]
[351698160,1738753835938,-2074.55,0.0001587,2]
[351698161,1738753835947,-2074.55,0.0001587,2]
[351698162,1738753835957,-2074.55,0.0001587,2]
[351698163,1738753835966,-2074.55,0.0001587,2]
[351698164,1738753835976,-2074.55,0.0001587,2]
[351698165,1738753835985,-2074.67,0.0001587,2]
[351698166,1738753835995,-399.013181,0.0001587,2]
[351698167,1738753836004,-500.0,0.0001587,2]
[351698168,1738753836014,-399.013183,0.0001587,2]
[351698169,1738753836024,-500.0,0.0001587,2]